bitfinex/quotes_ETHUSD_20250730
["timestamp","ask_amount","ask_price","bid_price","bid_amount"]
[1753866654330,0.55,3817.1,3817.0,0.001]
[1753866654533,0.93817416,3817.1,3817.0,0.001]
[1753866655101,8.09068901,3817.1,3817.0,0.001]
[1753866655301,8.52460352,3817.1,3817.0,0.001]
[1753866655625,5.90481363,3817.1,3817.0,0.001]
[1753866656335,5.01841363,3817.1,3817.0,0.001]
[1753866657886,3.93898867,3817.1,3817.0,0.8052]
[1753866659889,3.93898867,3817.1,3817.0,0.001]
[1753866660314,0.55,3816.9,3816.6,0.001]
[1753866660528,0.52018867,3816.8,3816.6,0.1223]
[1753866660784,0.38898867,3816.7,3816.6,0.001]
[1753866661407,0.38898867,3816.7,3816.6,0.1223]
[1753866661818,0.38898867,3816.7,3816.6,0.1703]
[1753866662411,0.38898867,3816.7,3816.6,2.7904331]
[1753866662633,0.38898867,3816.7,3816.6,0.3015]
[1753866662844,0.38898867,3816.7,3816.6,2.9216331]
[1753866663293,0.38898867,3816.7,3816.6,1.0623]
[1753866663493,0.38898867,3816.7,3816.6,0.7618]
[1753866664106,0.52018867,3816.7,3816.6,0.7618]
[1753866665820,1.07018867,3816.7,3816.6,0.001]
[1753866666320,2.17204754,3816.7,3816.6,0.001]
[1753866666507,42.93139533,3816.7,3816.6,0.001]
[1753866666708,3.17029429,3816.4,3816.1,0.041]
[1753866666934,0.6812,3816.2,3816.1,0.041]
[1753866667106,1.07018867,3816.2,3816.1,0.041]
[1753866667299,5.38160754,3816.2,3816.1,0.041]
[1753866667712,4.94020754,3816.2,3816.1,0.041]
[1753866668035,4.53318867,3816.2,3816.1,0.041]
[1753866668196,4.97458867,3816.2,3816.1,0.041]
[1753866670142,4.97684972,3816.2,3816.1,0.041]
[1753866670635,4.97822846,3816.2,3816.1,0.041]
[1753866673341,4.53682846,3816.2,3816.1,0.041]
[1753866674639,4.07382846,3816.2,3816.1,0.041]
[1753866675734,3.52382846,3816.2,3816.1,0.8339]
[1753866676045,3.39264668,3816.2,3816.1,1.0032]
[1753866676217,0.39264668,3816.2,3816.1,1.0032]
[1753866676411,0.39264668,3816.2,3816.1,3.6236764]
[1753866677114,0.39264668,3816.2,3816.1,1.0032]
[1753866677346,0.39264668,3816.2,3816.1,3.7548764]
[1753866679849,0.20154158,3817.2,3817.0,0.8278]
[1753866680179,0.39254827,3817.1,3817.0,0.8278]
[1753866680496,0.39254827,3817.1,3817.0,3.44765852]
[1753866680654,0.39254827,3817.1,3817.0,3.56895852]
[1753866680843,0.39254827,3817.1,3817.0,3.70015852]
[1753866682072,0.39254827,3817.1,3817.0,3.57885852]
[1753866684877,0.39254827,3817.1,3817.0,3.70015852]
[1753866685761,0.39254827,3817.1,3817.0,3.57885852]
[1753866686779,0.39254827,3817.1,3817.0,0.959]
[1753866686949,0.463,3817.1,3817.0,0.959]
[1753866687688,0.55,3817.0,3816.3,0.807]
[1753866688180,0.55,3817.0,3816.4,2.62027041]
[1753866688181,1.0356,3816.9,3816.4,2.62027041]
[1753866688381,1.0356,3816.9,3816.3,0.1312]
[1753866688382,0.5942,3816.9,3816.3,0.1312]
[1753866688581,0.9044,3816.8,3816.3,2.75152132]
[1753866688781,0.9044,3816.7,3816.4,2.62027041]
[1753866688983,0.1312,3816.9,3816.4,2.62027041]
[1753866689148,0.1312,3816.9,3816.3,2.7515325]
[1753866689149,0.9044,3816.6,3816.3,2.7515325]
[1753866689350,0.463,3816.5,3816.4,2.6202494]
[1753866689554,0.463,3816.5,3816.4,2.62027041]
[1753866690512,0.463,3816.5,3816.3,0.1312]
[1753866691009,0.1312,3816.9,3816.3,0.1312]
[1753866691213,0.4962,3817.0,3816.6,2.62006957]
[1753866691423,1.4957,3816.9,3816.3,0.1312]
[1753866691574,0.1312,3816.5,3816.1,0.041]
[1753866691773,0.9457,3816.4,3816.1,0.041]
[1753866692019,0.1312,3816.5,3816.1,0.041]
[1753866692020,0.9457,3816.3,3816.1,0.041]
[1753866692217,0.9995,3816.2,3816.1,0.041]
[1753866692381,1.6269,3816.2,3816.1,0.041]
[1753866693899,5.54659,3816.2,3816.1,0.041]
[1753866695305,5.79161444,3816.2,3816.1,0.041]
[1753866695511,5.93863157,3816.2,3816.1,0.041]
[1753866697522,8.55896053,3816.2,3816.1,0.041]
[1753866697825,43.56704387,3816.2,3816.1,0.041]
[1753866698804,38.42776053,3816.2,3816.1,0.041]
[1753866699188,8.42776053,3816.2,3816.1,0.041]
[1753866699384,38.42776053,3816.2,3816.1,0.041]
[1753866699798,8.42776053,3816.2,3816.1,0.041]
[1753866700089,38.42762018,3816.2,3816.1,0.041]
[1753866701522,4.87762018,3816.2,3816.1,0.041]
[1753866701725,5.42762018,3816.2,3816.1,0.041]
[1753866703191,2.80721245,3816.2,3816.1,0.041]
[1753866703623,8.42762018,3816.2,3816.1,0.041]
[1753866704932,5.80721245,3816.2,3816.1,0.041]
[1753866705727,8.42762018,3816.2,3816.1,0.041]
[1753866707694,5.93841245,3816.2,3816.1,0.041]
[1753866708839,8.55882018,3816.2,3816.1,0.041]
[1753866710851,8.55861044,3816.2,3816.1,0.041]
[1753866711058,8.96933689,3816.2,3816.1,0.041]
[1753866712024,38.96933689,3816.2,3816.1,0.041]
[1753866712705,139.35897771,3816.2,3816.1,0.041]
[1753866713049,139.35897771,3816.2,3815.7,0.001]
[1753866713050,36.99228242,3815.8,3815.7,0.001]
[1753866713349,45.48724308,3815.8,3815.7,0.001]
[1753866713712,46.43294308,3815.8,3815.7,0.001]
[1753866716163,46.17034308,3815.8,3815.7,0.001]
[1753866716523,46.17034308,3815.8,3813.7,0.7725]
[1753866716524,3.55,3814.6,3813.7,0.7725]
[1753866716722,0.6812,3814.2,3813.7,0.7725]
[1753866717343,0.6812,3814.2,3813.8,0.1213]
[1753866717751,0.6812,3814.2,3813.9,0.1213]
[1753866717923,0.8744883,3814.2,3813.9,0.1213]
[1753866718350,1.6613883,3814.2,3813.4,2.75350941]
[1753866718533,0.8744883,3814.2,3813.6,0.1213]
[1753866718735,0.8744883,3814.2,3813.1,0.04]
[1753866718736,1.6613883,3814.2,3813.1,0.04]
[1753866718941,0.8744883,3814.2,3813.5,0.7758]
[1753866719140,0.8744883,3814.2,3813.5,0.8971]
[1753866719739,1.38960713,3814.2,3813.5,0.8971]
[1753866719981,1.83910713,3814.2,3813.5,0.7758]
[1753866720158,5.57962267,3814.2,3813.5,0.7758]
[1753866720462,5.726209,3814.2,3813.5,0.7758]
[1753866726081,8.34818677,3814.2,3813.2,0.8227]
[1753866726279,39.14548677,3814.2,3813.1,0.04]
[1753866726461,36.52370501,3814.2,3813.2,0.8227]
[1753866726662,39.14548677,3814.2,3813.2,0.8227]
[1753866727067,4.23070501,3814.2,3813.1,0.04]
[1753866727271,3.71558618,3814.2,3814.0,0.823]
[1753866727804,4.26558618,3814.2,3814.1,0.2093]
[1753866727935,4.26558618,3814.2,3814.1,0.1613]
[1753866728381,3.71558618,3814.2,3814.1,0.2093]
[1753866728581,0.58438618,3814.2,3814.1,0.2093]
[1753866728873,0.58438618,3814.2,3814.1,1.0262]
[1753866729092,0.1932883,3814.2,3814.1,1.0262]
[1753866729584,2.6209707,3815.4,3814.2,0.7622]
[1753866729884,0.1312,3814.6,3814.3,0.1213]
[1753866730078,0.1312,3814.6,3814.4,0.1213]
[1753866730583,0.3251633,3814.6,3814.4,0.1213]
[1753866731363,0.3251633,3814.6,3814.2,0.7622]
[1753866731549,0.1939633,3814.6,3814.2,0.7622]
[1753866731762,0.6812,3814.3,3814.2,0.7622]
[1753866734246,0.9256841,3814.3,3814.2,0.7622]
[1753866734689,0.55,3814.2,3814.1,0.04]
[1753866735023,1.41187203,3814.2,3814.1,0.04]
[1753866735146,1.87618607,3814.2,3814.1,0.04]
[1753866735347,0.94118607,3814.2,3814.1,0.04]
[1753866735656,0.39118607,3814.2,3814.1,0.8181]
[1753866735967,0.19650353,3814.6,3814.2,0.7964]
[1753866736289,0.39127731,3814.5,3814.4,2.62164429]
[1753866736441,0.002,3815.5,3814.5,0.7765]
[1753866736645,0.002,3815.5,3814.8,0.7765]
[1753866736848,0.002,3815.5,3815.3,0.1312]
[1753866737085,0.002,3815.5,3815.4,0.797]
[1753866738779,0.002,3815.5,3815.1,0.1312]
[1753866738951,0.002,3815.5,3815.2,0.7752]
[1753866739155,0.1312,3815.3,3814.9,0.7752]
[1753866739370,0.55,3815.2,3814.9,0.7752]
[1753866739571,1.0271,3815.2,3814.9,0.7752]
[1753866739776,1.485,3815.2,3814.9,0.7752]
[1753866740968,0.55,3815.0,3814.6,0.7603]
[1753866741173,0.1312,3814.9,3814.6,0.7603]
[1753866743106,0.6083,3814.9,3814.6,0.7603]
[1753866744015,0.1312,3814.9,3814.6,3.38180572]
[1753866744223,0.1312,3815.2,3814.7,2.62143812]
[1753866744515,0.1312,3815.2,3814.6,0.8915]
[1753866744721,0.55,3815.4,3814.8,0.2525]
[1753866744722,0.1312,3815.3,3814.8,0.2525]
[1753866745216,0.20350669,3815.5,3815.0,2.62122438]
[1753866745421,0.20350669,3815.5,3815.0,2.75242438]
[1753866745422,0.33470669,3815.5,3815.0,2.75242438]
[1753866745619,0.33470669,3815.5,3815.0,2.87372438]
[1753866745819,0.33470669,3815.5,3815.1,0.1213]
[1753866746026,0.33470669,3815.5,3815.0,0.1312]
[1753866746027,1.26970669,3815.5,3815.0,0.1312]
[1753866746195,0.935,3815.4,3815.0,0.1312]
[1753866747086,0.55,3815.3,3814.9,0.7873]
[1753866747293,0.1312,3815.0,3814.5,0.1312]
[1753866747586,0.6083,3815.0,3814.5,0.1312]
[1753866748202,0.1312,3815.0,3814.5,0.1312]
[1753866748523,0.935,3814.9,3814.4,0.1312]
[1753866748826,36.17178176,3814.2,3814.1,0.041]
[1753866749025,39.12643949,3814.2,3814.1,0.041]
[1753866749322,39.67704637,3814.2,3814.1,0.041]
[1753866753229,40.06842598,3814.2,3814.1,0.041]
[1753866754631,37.44664422,3814.2,3814.1,0.041]
[1753866754836,40.06842598,3814.2,3814.1,0.041]
[1753866755035,37.44664422,3814.2,3814.1,0.041]
[1753866755255,7.44664422,3814.2,3814.1,0.041]
[1753866755457,4.87637961,3814.2,3814.1,0.041]
[1753866756552,3.94137961,3814.2,3814.1,0.041]
[1753866757129,4.40907961,3814.2,3814.1,0.041]
[1753866757532,7.49856137,3814.2,3814.1,0.041]
[1753866757969,4.87677961,3814.2,3814.1,0.041]
[1753866758264,5.70646086,3814.2,3814.1,0.041]
[1753866758836,5.83766086,3814.2,3814.1,0.041]
[1753866759150,38.45944262,3814.2,3814.1,0.041]
[1753866759327,39.24944262,3814.2,3814.1,0.041]
[1753866762371,39.24944262,3814.2,3813.1,0.04]
[1753866762372,2.62246931,3813.2,3813.1,0.04]
[1753866762535,37.35286976,3813.2,3813.1,0.04]
[1753866762865,35.79700045,3813.2,3813.1,0.04]
[1753866763248,5.79700045,3813.2,3813.1,0.04]
[1753866763433,5.32930045,3813.2,3813.1,0.04]
[1753866763634,6.63884183,3813.2,3813.1,0.04]
[1753866763867,39.26131114,3813.2,3813.1,0.04]
[1753866765383,5.70344183,3813.2,3813.1,0.04]
[1753866765693,9.26131114,3813.2,3813.1,0.04]
[1753866766190,6.17114183,3813.2,3813.1,0.04]
[1753866766405,6.0247787,3813.2,3813.1,0.04]
[1753866766781,5.5570787,3813.2,3813.1,0.04]
[1753866767090,3.6812,3813.2,3813.1,0.04]
[1753866767285,3.92483175,3813.2,3813.1,0.04]
[1753866767487,3.6812,3813.2,3813.1,0.04]
[1753866768390,3.87653435,3813.2,3813.1,0.04]
[1753866768981,4.81193435,3813.2,3813.1,0.04]
[1753866769189,6.45159746,3813.2,3813.1,0.04]
[1753866769893,36.45159746,3813.2,3813.1,0.04]
[1753866770262,34.74769746,3813.2,3813.1,0.04]
[1753866770464,4.74769746,3813.2,3813.1,0.04]
[1753866770789,5.21539746,3813.2,3813.1,0.04]
[1753866771297,5.47799746,3813.2,3813.1,0.04]
[1753866771470,5.21539746,3813.2,3813.1,0.04]
[1753866771677,5.68309746,3813.2,3813.1,0.04]
[1753866771975,8.30556677,3813.2,3813.1,0.04]
[1753866772303,5.68309746,3813.2,3813.1,0.04]
[1753866772814,8.30556677,3813.2,3813.1,0.04]
[1753866773291,5.68309746,3813.2,3813.1,0.04]
[1753866774966,8.30556677,3813.2,3813.1,0.04]
[1753866776164,5.68309746,3813.2,3813.1,0.04]
[1753866776900,5.44629746,3813.2,3813.1,0.04]
[1753866777727,8.06876677,3813.2,3813.1,0.04]
[1753866777889,5.44629746,3813.2,3813.1,0.04]
[1753866778495,8.06876677,3813.2,3813.1,0.04]
[1753866779368,8.06876677,3813.2,3812.7,0.001]
[1753866779369,3.17274443,3812.8,3812.7,0.001]
[1753866779677,3.55,3812.2,3812.1,0.04]
[1753866779998,3.69477848,3812.2,3812.1,0.04]
[1753866780195,4.07162125,3812.2,3812.1,0.04]
[1753866780358,4.53932125,3812.2,3812.1,0.04]
[1753866780788,4.73336027,3812.2,3812.1,0.04]
[1753866780989,8.46899936,3812.2,3812.1,0.04]
[1753866781191,5.84584213,3812.2,3812.1,0.04]
[1753866781602,5.40444213,3812.2,3812.1,0.04]
[1753866781808,4.07162125,3812.2,3812.1,0.04]
[1753866782160,4.07162125,3812.2,3812.1,0.2493]
[1753866782563,4.07162125,3812.2,3812.1,0.04]
[1753866782763,4.07162125,3812.2,3812.1,0.9657]
[1753866783401,4.07162125,3812.2,3812.1,0.8444]
[1753866783766,4.07162125,3812.2,3812.1,0.041]
[1753866784251,4.07270057,3812.2,3812.1,0.041]
[1753866786811,3.52270057,3812.2,3812.1,0.041]
[1753866787016,3.39150057,3812.2,3812.1,0.1623]
[1753866787244,3.39150057,3812.2,3812.1,3.55272604]
[1753866787430,3.39150057,3812.2,3812.1,3.64072604]
[1753866787631,3.39150057,3812.2,3812.1,1.0175]
[1753866787916,0.24468786,3812.2,3812.1,3.64072604]
[1753866788112,0.1312,3812.6,3812.2,2.62314663]
[1753866788320,0.14686968,3812.5,3812.1,0.9394]
[1753866788551,0.24476478,3812.4,3812.3,2.62308842]
[1753866788865,0.39163446,3812.4,3812.3,0.2093]
[1753866789008,0.39163446,3812.4,3812.3,2.83238842]
[1753866789212,0.39163446,3812.4,3812.3,3.64238842]
[1753866789213,0.24476478,3812.4,3812.3,3.64238842]
[1753866789411,0.1312,3812.8,3812.4,0.81]
[1753866789670,0.14695028,3812.7,3812.5,2.83225081]
[1753866789825,0.24491711,3812.6,3812.5,2.71095081]
[1753866790018,0.24491711,3812.6,3812.5,0.088]
[1753866790019,0.39186739,3812.6,3812.5,0.088]
[1753866790245,0.39186739,3812.6,3812.5,2.71095081]
[1753866790539,0.39186739,3812.6,3812.5,2.83225081]
[1753866790741,0.39186739,3812.6,3812.5,0.1213]
[1753866791145,0.39186739,3812.6,3812.5,2.74425081]
[1753866791318,0.39186739,3812.6,3812.5,0.1213]
[1753866791763,0.39186739,3812.6,3812.4,0.81]
[1753866791918,0.39186739,3812.5,3812.4,3.55431962]
[1753866792251,0.39186739,3812.5,3812.4,0.9313]
[1753866792471,0.39186739,3812.5,3812.4,3.52101962]
[1753866792626,0.39186739,3812.5,3812.4,3.77351962]
[1753866792819,0.1312,3813.0,3812.7,2.6227673]
[1753866793122,0.19533435,3813.2,3812.8,3.61322256]
[1753866793123,0.39200413,3812.9,3812.8,3.61322256]
[1753866793328,0.39200413,3812.9,3812.8,3.58699512]
[1753866793661,0.39200413,3812.9,3812.8,3.71819512]
[1753866793815,0.24500173,3812.9,3812.8,3.71819512]
[1753866794175,0.24500173,3812.9,3812.8,3.53223411]
[1753866794376,0.24498839,3813.3,3812.9,2.62267026]
[1753866794586,0.59290856,3813.2,3812.9,2.62267026]
[1753866794787,0.39192882,3813.1,3812.8,0.9095]
[1753866795069,0.24496247,3813.0,3812.8,0.9095]
[1753866795283,0.1312,3813.5,3812.8,3.53221708]
[1753866795421,0.20031251,3813.2,3812.8,3.53221708]
[1753866795622,0.24489425,3813.1,3812.8,3.53221708]
[1753866795849,0.1312,3813.5,3812.8,0.9095]
[1753866796051,0.14693653,3813.4,3812.8,0.9095]
[1753866796372,0.24489412,3813.3,3812.8,0.9095]
[1753866796760,0.24489412,3813.2,3812.8,0.9095]
[1753866796966,0.4927,3813.3,3812.8,0.9095]
[1753866797122,0.24484095,3813.2,3812.8,0.7783]
[1753866797320,0.81744095,3813.2,3812.8,0.7783]
[1753866797637,0.9341,3813.1,3812.8,0.7783]
[1753866797960,0.9341,3813.1,3812.1,2.78551751]
[1753866797961,0.9341,3813.0,3812.5,0.931]
[1753866798132,0.9341,3812.9,3812.5,0.931]
[1753866798320,0.4414,3812.9,3812.5,0.931]
[1753866798665,0.4927,3812.8,3812.5,0.931]
[1753866799680,0.55,3813.0,3812.2,0.8184]
[1753866799859,0.9341,3812.7,3812.2,0.9496]
[1753866800164,0.9341,3812.6,3812.2,0.9496]
[1753866800455,0.4927,3812.5,3812.2,0.9496]
[1753866800662,0.6239,3812.8,3812.2,3.57275709]
[1753866801044,0.6239,3812.8,3812.3,2.62308177]
[1753866801780,1.0653,3812.8,3812.2,3.57275199]
[1753866802580,1.0653,3812.8,3812.2,0.9496]
[1753866802725,0.76727906,3812.8,3812.2,0.9496]
[1753866802920,0.4927,3812.7,3812.2,0.9496]
[1753866803351,0.32587906,3812.8,3812.2,0.9496]
[1753866803670,0.9341,3812.6,3812.2,0.9496]
[1753866803978,0.4927,3812.5,3812.2,0.9496]
[1753866804186,0.4927,3812.5,3812.1,0.041]
[1753866804187,1.4841,3812.5,3812.1,0.041]
[1753866804328,0.8259,3812.2,3812.1,0.041]
[1753866804676,1.3759,3812.2,3812.1,0.041]
[1753866805184,2.31,3812.2,3812.1,0.041]
[1753866806274,0.7939,3812.6,3812.1,0.041]
[1753866806441,0.4927,3812.6,3812.2,0.7667]
[1753866806667,0.552,3812.7,3812.2,0.7667]
[1753866806846,0.391412,3812.6,3812.2,0.7667]
[1753866807186,0.552,3812.7,3812.2,0.7667]
[1753866807187,0.002,3812.7,3812.2,0.7667]
[1753866807500,0.4927,3812.6,3812.2,0.7667]
[1753866808654,0.4434,3812.7,3812.2,0.7667]
[1753866808655,1.4841,3812.5,3812.2,0.7667]
[1753866808854,0.9341,3812.4,3812.1,0.041]
[1753866809187,0.55,3812.3,3812.1,0.041]
[1753866809345,0.55,3812.2,3812.1,0.041]
[1753866809751,1.4841,3812.2,3812.1,0.041]
[1753866810105,0.002,3812.7,3812.1,0.041]
[1753866810106,0.4947,3812.7,3812.1,0.041]
[1753866810245,0.002,3812.7,3812.2,0.7883]
[1753866810446,0.24669948,3812.7,3812.2,0.7883]
[1753866810879,0.71609948,3812.7,3812.2,0.7883]
[1753866811094,0.4714,3812.7,3812.2,0.7883]
[1753866811387,0.39151513,3812.6,3812.2,0.7883]
[1753866811683,0.24476418,3812.5,3812.2,0.7883]
[1753866811897,0.4714,3812.7,3812.2,0.7883]
[1753866812064,0.39164216,3812.6,3812.2,0.7883]
[1753866812385,0.002,3812.7,3812.2,0.7883]
[1753866812741,0.39371537,3812.7,3812.2,0.7883]
[1753866812960,0.002,3812.7,3812.6,2.62288202]
[1753866813367,0.002,3812.7,3812.6,3.63458202]
[1753866813612,0.002,3812.7,3812.6,3.66081084]
[1753866814003,0.002,3812.7,3812.6,3.63458202]
[1753866814232,0.002,3812.7,3812.6,3.76578202]
[1753866814502,0.39380271,3812.7,3812.6,3.79201084]
[1753866814881,0.39380271,3812.7,3812.6,3.76578202]
[1753866816411,0.002,3812.7,3812.6,3.76578202]
[1753866818399,0.002,3812.7,3812.6,3.67778202]
[1753866820453,0.002,3812.7,3812.6,3.70401084]
[1753866820652,0.002,3812.7,3812.6,3.79201084]
[1753866820955,1e-08,3812.7,3812.6,3.79201084]
[1753866821780,0.002,3813.6,3813.5,3.37706301]
[1753866821907,0.002,3813.6,3813.5,3.40328564]
[1753866822109,0.002,3813.6,3813.5,3.50826301]
[1753866822355,0.002,3813.6,3813.5,3.53448564]
[1753866822658,0.002,3813.6,3813.5,3.50826301]
[1753866822863,0.002,3813.6,3813.5,3.53448564]
[1753866823228,0.002,3813.6,3813.5,3.65578564]
[1753866823447,0.002,3813.6,3813.5,3.62956301]
[1753866823835,0.002,3813.6,3813.5,3.50826301]
[1753866826678,0.4714,3813.6,3813.5,3.50826301]
[1753866826970,0.9308,3813.6,3813.5,3.50826301]
[1753866827260,0.9308,3813.6,3813.5,2.75346301]
[1753866827683,0.9308,3813.6,3813.5,0.1312]
[1753866827889,0.9308,3813.6,3813.3,2.75355451]
[1753866828115,0.002,3813.6,3813.3,2.75355451]
[1753866828324,0.002,3813.6,3813.3,0.1312]
[1753866828325,0.9288,3813.5,3813.3,0.1312]
[1753866828456,0.4594,3813.5,3813.0,2.75375283]
[1753866828660,0.9288,3813.4,3813.0,2.75375283]
[1753866828874,0.1312,3813.5,3813.0,0.1312]
[1753866829100,0.9288,3813.3,3813.0,0.1312]
[1753866829316,0.9288,3813.2,3813.0,0.1312]
[1753866829499,0.9288,3813.1,3813.0,0.1312]
[1753866830003,1.09971,3813.1,3812.7,0.1312]
[1753866830320,1.06,3813.0,3812.5,0.1312]
[1753866830516,1.06,3813.0,3812.3,0.1312]
[1753866830729,0.1312,3813.0,3812.3,0.1312]
[1753866830881,0.9288,3812.9,3812.3,0.1312]
[1753866831079,0.1312,3813.0,3812.4,2.62301566]
[1753866831305,0.9288,3812.8,3812.4,2.62301566]
[1753866831514,0.1312,3813.0,3812.4,2.62301566]
[1753866831713,0.9288,3812.7,3812.4,2.62301566]
[1753866831917,0.4694,3812.6,3812.4,2.62301566]
[1753866832094,0.4694,3812.6,3812.5,2.62295081]
[1753866832804,0.9288,3812.6,3812.5,2.62295081]
[1753866833320,0.9288,3812.6,3812.4,2.62299812]
[1753866833522,0.9288,3812.5,3812.4,2.62299812]
[1753866833677,0.9288,3812.5,3812.3,2.75427881]
[1753866833878,0.9288,3812.4,3812.3,0.1312]
[1753866834327,1.10451,3812.4,3811.1,0.8531]
[1753866834528,1.10451,3812.4,3811.1,0.04]
[1753866834529,0.55,3811.8,3811.1,0.04]
[1753866834727,0.9119,3811.5,3811.1,0.04]
[1753866835097,0.9288,3811.4,3811.1,0.04]
[1753866835330,0.7807,3811.8,3811.1,2.66389816]
[1753866835630,0.7807,3811.8,3811.1,0.04]
[1753866835631,0.4694,3811.4,3811.1,0.04]
[1753866835792,0.55,3811.3,3811.1,0.04]
[1753866835992,0.1312,3811.2,3811.1,0.04]
[1753866836325,1.06,3811.2,3811.1,0.04]
[1753866837207,1.25816331,3811.2,3811.1,0.04]
[1753866837631,1.12696331,3811.2,3811.1,0.04]
[1753866838140,0.19816331,3811.2,3811.1,2.66391435]
[1753866838325,0.4694,3811.6,3811.1,2.66391435]
[1753866838635,0.4694,3811.5,3811.1,2.66391435]
[1753866838848,0.1312,3811.6,3811.1,2.66391435]
[1753866839053,0.4694,3811.4,3811.1,2.66391435]
[1753866839362,0.66807562,3811.4,3811.2,2.6238321]
[1753866839539,0.66807562,3811.4,3811.3,2.62377666]
[1753866840219,0.7807,3811.8,3811.5,2.623577]
[1753866840220,0.4694,3811.7,3811.5,2.623577]
[1753866840614,0.4952,3812.4,3811.6,0.7992357]
[1753866840761,0.4382,3812.5,3811.6,0.7992357]
[1753866840762,0.39101777,3812.3,3811.9,4.72855689]
[1753866840923,0.7767,3813.0,3811.9,4.72855689]
[1753866840924,0.1312,3812.8,3812.2,0.1312]
[1753866841123,0.64185232,3812.7,3812.5,0.1312]
[1753866841333,0.39106892,3812.6,3812.1,2.62315813]
[1753866841662,0.6264,3812.9,3812.5,2.62295081]
[1753866841862,0.39108654,3812.8,3812.5,2.62295081]
[1753866842028,0.39108654,3812.7,3812.5,2.62295081]
[1753866842229,0.39108679,3812.6,3812.5,2.62295081]
[1753866842556,0.88628679,3812.6,3812.4,2.75421498]
[1753866842771,0.4382,3812.8,3812.7,2.62281322]
[1753866842981,0.39102428,3812.8,3812.7,2.62281322]
[1753866843329,2.09902428,3812.8,3811.4,0.8164]
[1753866843547,1.55451403,3812.7,3811.6,2.62351636]
[1753866843750,0.39102428,3812.6,3811.7,2.62346214]
[1753866844058,0.9334,3812.5,3811.7,2.62346214]
[1753866844269,0.4382,3812.5,3811.7,2.62346214]
[1753866844478,1.32412171,3812.4,3811.6,2.62355493]
[1753866844680,1.32412173,3812.3,3811.4,3.44008321]
[1753866844878,0.55,3812.2,3811.3,2.62375258]
[1753866845043,0.7847,3812.1,3811.2,2.62378336]
[1753866845242,0.9334,3812.0,3811.3,2.62376913]
[1753866845552,0.9334,3812.0,3811.4,2.62368672]
[1753866845553,0.4952,3811.9,3811.4,2.62368672]
[1753866846173,0.4382,3811.8,3811.4,2.62368672]
[1753866846374,0.9334,3811.8,3811.3,2.62375133]
[1753866846682,0.4952,3811.7,3811.3,2.62375133]
[1753866846976,0.4952,3811.7,3811.1,2.66390313]
[1753866846977,0.4952,3812.1,3811.4,0.02623707]
[1753866847136,0.4952,3812.1,3811.6,2.6235021]
[1753866847336,0.4952,3812.1,3811.4,2.62370782]
[1753866847592,0.4952,3812.1,3811.3,0.001]
[1753866847743,0.4952,3812.1,3811.4,2.62370782]
[1753866848098,0.4952,3812.1,3811.7,2.62349194]
[1753866848263,0.4952,3812.1,3811.6,2.62354494]
[1753866848673,0.794,3812.4,3811.3,0.001]
[1753866848674,0.9334,3812.0,3811.3,0.001]
[1753866848874,0.55,3811.9,3811.3,0.001]
[1753866849078,0.7951,3811.8,3811.6,0.001]
[1753866849482,0.4952,3811.7,3811.6,0.001]
[1753866849695,0.9334,3811.7,3811.6,0.001]
[1753866849976,0.7951,3811.8,3811.6,0.001]
[1753866850399,0.4952,3811.7,3811.6,0.001]
[1753866851088,0.9334,3811.7,3811.6,0.001]
[1753866852341,0.4952,3811.7,3811.6,0.001]
[1753866852536,0.4382,3812.0,3811.6,0.001]
[1753866852786,0.2439799,3811.9,3811.6,0.001]
[1753866852944,0.4382,3812.0,3811.6,0.001]
[1753866852945,0.9334,3812.0,3811.7,2.62349957]
[1753866853166,0.4952,3812.3,3811.8,2.62342598]
[1753866853368,0.73920681,3812.2,3811.6,0.1322]
[1753866853606,0.73920681,3812.2,3811.7,2.62350132]
[1753866853607,0.24400681,3812.1,3811.7,2.62350132]
[1753866853911,1.17740681,3812.1,3811.6,0.1322]
[1753866854107,0.9334,3812.0,3811.6,0.1322]
[1753866854309,0.4382,3811.9,3811.6,0.1322]
[1753866854615,0.9334,3811.8,3811.6,0.1322]
[1753866854912,0.9334,3811.7,3811.6,0.001]
[1753866855313,1.7055,3811.7,3811.6,0.001]
[1753866855503,2.26460765,3811.7,3811.6,0.001]
[1753866856168,1.51153765,3811.7,3811.6,0.001]
[1753866856368,0.24423765,3811.7,3811.6,0.001]
[1753866856672,0.24423765,3812.0,3811.6,0.001]
[1753866856982,0.24423765,3811.9,3811.6,0.001]
[1753866857179,0.24423765,3811.8,3811.6,0.001]
[1753866857388,0.2444632,3811.7,3811.6,0.001]
[1753866857564,0.9334,3812.0,3811.6,0.001]
[1753866857767,0.24446219,3811.9,3811.6,0.001]
[1753866858007,0.24445849,3811.8,3811.6,0.001]
[1753866858395,0.4952,3811.7,3811.6,0.001]
[1753866858594,1.17785849,3811.7,3811.6,0.001]
[1753866858926,1.30905849,3811.7,3811.6,0.001]
[1753866860284,0.24445849,3811.7,3811.6,0.1322]
[1753866860489,0.24445849,3811.9,3811.6,0.1322]
[1753866860831,0.24445849,3811.8,3811.6,0.1322]
[1753866861006,0.1312,3812.1,3811.6,0.1322]
[1753866861007,0.73965849,3811.7,3811.6,0.1322]
[1753866861211,1.17785849,3811.7,3811.6,0.1322]
[1753866861394,1.17785849,3811.7,3811.6,0.001]
[1753866861720,1.56968367,3811.7,3811.6,0.001]
[1753866863421,1.56979616,3811.7,3811.6,0.001]
[1753866864021,1.42274988,3811.7,3811.6,0.001]
[1753866864382,1.56987796,3811.7,3811.6,0.001]
[1753866864740,0.63647796,3811.7,3811.6,0.001]
[1753866865382,1.1319774,3811.7,3811.6,0.001]